bitfinex-derivatives/quotes_SOLF0:USTF0_20241015
["timestamp","ask_amount","ask_price","bid_price","bid_amount"]
[1729019602582,4.63753995,155.18,155.08,24.82]
[1729019602777,4.63753995,155.18,155.12,3.2236]
[1729019603178,3.2231,155.16,155.12,3.2236]
[1729019603381,11.07753995,155.18,155.11,3.2239]
[1729019603584,11.07753995,155.18,155.08,26.2559]
[1729019603979,3.2235,155.14,155.1,3.224]
[1729019604481,14.30013995,155.18,155.15,3.223]
[1729019604675,11.07753995,155.18,155.08,26.2559]
[1729019606084,11.07753995,155.18,155.07,6.44]
[1729019606283,24.82,155.16,155.04,6.44]
[1729019606480,2.7996,155.15,155.04,6.44]
[1729019606680,3.224,155.11,155.08,3.2244]
[1729019606984,6.44,155.14,155.04,6.44]
[1729019607388,24.82,155.13,155.02,2.6105]
[1729019608083,24.82,155.13,155.05,3.225]
[1729019608675,3.2248,155.07,155.04,3.2253]
[1729019608883,24.82,155.13,155.02,2.6105]
[1729019609589,6.44,155.14,155.03,24.82]
[1729019610090,3.2243,155.1,155.07,3.2247]
[1729019610391,6.44,155.14,155.03,24.82]
[1729019610684,3.2241,155.11,155.07,3.2246]
[1729019610981,24.82,155.13,155.02,2.6105]
[1729019611381,24.82,155.1,154.98,24.82]
[1729019611582,3.2255,155.04,155.01,3.2259]
[1729019612289,3.225,155.06,155.03,3.2256]
[1729019612484,1.3106,155.08,154.99,6.44]
[1729019612788,7.8343,155.09,155.0,24.82]
[1729019613291,1.3943,155.09,155.0,24.82]
[1729019613883,4.6188,155.09,155.06,3.225]
[1729019614079,1.4295,155.13,155.03,24.82]
[1729019614285,7.8695,155.13,155.03,31.26]
[1729019614489,7.8695,155.13,155.05,24.82]
[1729019615285,229.0,155.2,155.08,24.82]
[1729019615480,11.13863995,155.18,155.08,31.26]
[1729019616080,3.2229,155.17,155.11,3.224]
[1729019616281,3.2229,155.17,155.1,24.82]
[1729019616486,1.4295,155.18,155.1,24.82]
[1729019616790,26.2134,155.21,155.1,24.82]
[1729019616791,1.3934,155.21,155.1,24.82]
[1729019617393,3.2223,155.2,155.12,24.82]
[1729019617779,3.2223,155.2,155.12,31.26]
[1729019618087,4.582,155.22,155.15,24.82]
[1729019618278,9.7110517,155.26,155.15,24.82]
[1729019618279,3.2710517,155.26,155.15,24.82]
[1729019618482,1.3602,155.26,155.15,24.82]
[1729019618679,3.2213,155.24,155.19,3.2221]
[1729019619085,3.2213,155.24,155.15,24.82]
[1729019619279,3.2211,155.25,155.18,24.82]
[1729019619893,3.2213,155.24,155.2,3.2219]
[1729019621781,3.2216,155.23,155.18,28.0423]
[1729019621983,3.2216,155.23,155.16,6.44]
[1729019622194,26.1802,155.26,155.16,6.44]
[1729019622380,3.2219,155.21,155.17,3.2227]
[1729019624393,3.2217,155.22,155.18,3.2225]
[1729019624896,3.2216,155.23,155.18,3.2223]
[1729019625290,3.2216,155.23,155.14,24.82]
[1729019625595,3.2213,155.24,155.2,3.2219]
[1729019625897,1.4075,155.25,155.17,24.82]
[1729019626091,1.4075,155.25,155.17,31.26]
[1729019626290,4.6287,155.25,155.21,3.2218]
[1729019626495,3.2212,155.25,155.21,3.2218]
[1729019627399,3.2212,155.25,155.17,31.26]
[1729019627698,3.2212,155.25,155.22,3.2216]
[1729019631193,3.2212,155.25,155.17,31.26]
[1729019631389,3.2212,155.25,155.21,3.2217]
[1729019631605,6.44,155.27,155.17,31.26]
[1729019631606,10.64541342,155.29,155.19,24.82]
[1729019631802,8.8707,155.29,155.22,3.2215]
[1729019632191,24.82,155.28,155.17,24.82]
[1729019632396,3.26579478,155.27,155.19,3.2222]
[1729019632691,3.2214,155.24,155.16,6.18]
[1729019632890,3.2214,155.24,155.2,3.2219]
[1729019633500,3.2215,155.23,155.2,3.2219]
[1729019634297,3.2213,155.24,155.21,3.2218]
[1729019635699,6.18,155.25,155.17,24.82]
[1729019635898,9.4012,155.25,155.22,3.2216]
[1729019636900,3.21755277,155.28,155.17,24.82]
[1729019637098,3.2208,155.26,155.23,3.2214]
[1729019637993,9.39755277,155.28,155.17,24.82]
[1729019638302,24.82,155.25,155.13,2.7757]
[1729019638606,6.18,155.24,155.14,6.18]
[1729019638805,3.2222,155.2,155.17,3.2227]
[1729019641406,1.2928,155.22,155.14,6.18]
[1729019641594,1.2928,155.22,155.2,3.222]
[1729019642009,1.3051,155.29,155.17,24.82]
[1729019642202,3.2212,155.25,155.22,3.2215]
[1729019643408,3.2212,155.25,155.19,24.82]
[1729019643409,7.5571,155.27,155.16,24.82]
[1729019644009,3.2216,155.23,155.19,3.2221]
[1729019644406,3.2216,155.23,155.16,24.82]
[1729019644709,3.2216,155.23,155.2,3.222]
[1729019645711,7.5571,155.27,155.16,24.82]
[1729019646009,7.5571,155.27,155.11,9.67070317]
[1729019646010,24.82,155.24,155.11,24.82]
[1729019646211,24.82,155.21,155.1,6.18]
[1729019646415,3.2231,155.16,155.13,3.2235]
[1729019646708,8.9043,155.2,155.08,26.1713]
[1729019646911,3.2234,155.14,155.11,3.2239]
[1729019648410,3.2232,155.15,155.11,3.2239]
[1729019649005,3.2232,155.15,155.12,3.2237]
[1729019650208,3.2232,155.15,155.09,6.18]
[1729019650517,3.2232,155.15,155.11,3.2238]
[1729019651209,3.2232,155.15,155.09,6.18]
[1729019652406,3.2232,155.15,155.12,3.2237]
[1729019653211,3.19862877,155.18,155.1,3.224]
[1729019653414,24.82,155.19,155.06,31.0]
[1729019653615,28.01383237,155.19,155.06,31.0]
[1729019653921,24.82,155.16,155.03,26.1902]
[1729019654211,7.5092,155.15,155.03,32.3702]
[1729019654516,3.2243,155.1,155.06,3.2249]
[1729019657006,3.2243,155.1,155.03,32.3702]
[1729019657214,3.2241,155.11,155.07,3.2247]
[1729019657514,10.68418206,155.15,155.07,3.2247]
[1729019657913,3.2249,155.07,155.03,3.2254]
[1729019658120,6.18,155.09,154.99,24.82]
[1729019658414,3.2257,155.03,154.97,6.18]
[1729019659021,3.2257,155.03,155.0,3.2261]
[1729019659719,1.3272,155.06,154.97,6.18]
[1729019659919,3.2255,155.04,155.01,3.226]
[1729019660322,1.3272,155.06,154.99,24.82]
[1729019661108,1.3272,155.06,155.04,3.2254]
[1729019661315,1.3272,155.06,154.99,24.82]
[1729019661514,4.5522,155.06,155.03,3.2255]
[1729019661917,5.94,155.07,155.03,3.2255]
[1729019662315,9.1649,155.07,155.03,3.2255]
[1729019663316,5.94,155.07,155.02,24.82]
[1729019663511,3.2246,155.08,155.02,24.82]
[1729019663923,3.2246,155.08,155.04,3.2252]
[1729019664426,3.2245,155.09,155.02,24.82]
[1729019665223,3.2247,155.08,155.05,3.2251]
[1729019665420,3.2247,155.08,155.02,24.82]
[1729019665620,1.325,155.1,155.03,3.2254]
[1729019666827,1.325,155.1,155.01,5.94]
[1729019667122,3.2249,155.07,155.04,3.2254]
[1729019667421,1.325,155.1,155.01,30.76]
[1729019667925,3.2247,155.08,155.01,30.76]
[1729019669025,3.2248,155.07,155.04,3.2253]
[1729019671418,1.325,155.1,155.01,30.76]
[1729019671629,1.325,155.1,155.07,3.2246]
[1729019672425,4.5493,155.1,155.07,3.2246]
[1729019673026,3.2244,155.09,155.06,3.2249]
[1729019674230,1.325,155.1,155.04,15.48]
[1729019675622,1.325,155.1,155.02,15.48]
[1729019676023,3.2248,155.08,155.05,3.2251]
[1729019676221,1.325,155.1,155.02,15.48]
[1729019676420,3.2245,155.09,155.06,3.2249]
[1729019677930,4.5492,155.1,155.07,3.2248]
[1729019678339,1.325,155.1,155.07,3.2248]
[1729019678628,3.2244,155.09,155.07,3.2248]
[1729019683932,3.2244,155.09,155.06,3.2249]
[1729019686137,16.805,155.1,155.0,15.48]
[1729019686433,15.48,155.08,155.0,15.48]
[1729019686632,21.42,155.08,155.0,15.48]
[1729019686829,21.42,155.08,154.98,15.48]
[1729019687032,21.42,155.08,154.98,21.42]
[1729019687229,21.42,155.08,155.03,3.2256]
[1729019687230,3.2251,155.06,155.03,3.2256]
[1729019687428,1.325,155.1,155.02,15.48]
[1729019687625,7.265,155.1,155.04,15.48]
[1729019687836,10.4893,155.1,155.07,3.2247]
[1729019688138,10.4893,155.1,155.04,15.48]
[1729019688332,10.4893,155.1,155.07,3.2246]
[1729019689633,3.2244,155.09,155.07,3.2246]
[1729019689839,7.265,155.1,155.04,15.48]
[1729019690033,7.265,155.1,155.08,3.2245]
[1729019690430,7.265,155.1,155.09,3.2244]
[1729019690626,5.94,155.1,155.09,3.2244]
[1729019690936,9.1643,155.1,155.04,15.48]
[1729019691133,9.1643,155.1,155.07,3.2246]
[1729019691540,3.2246,155.08,155.04,15.48]
[1729019691737,5.94,155.1,155.03,1.4049]
[1729019692031,3.2247,155.08,155.02,5.94]
[1729019692340,21.42,155.1,155.04,3.2254]
[1729019692747,3.2249,155.07,155.04,3.2254]
[1729019693038,5.94,155.1,155.02,15.48]
[1729019693432,3.2245,155.09,155.06,3.2249]
[1729019694038,3.2244,155.09,155.06,3.2249]
[1729019694437,5.94,155.1,155.0,15.48]
[1729019694742,3.2249,155.07,155.0,15.48]
[1729019695035,5.94,155.1,155.06,3.2249]
[1729019695233,3.2245,155.09,155.06,3.2249]
[1729019696139,9.1642,155.1,155.07,3.2247]
[1729019696535,5.94,155.1,155.07,3.2247]
[1729019696735,5.94,155.1,155.03,15.48]
[1729019696939,3.2244,155.09,155.07,3.2247]
[1729019697745,9.1642,155.1,155.08,3.2246]
[1729019698137,3.2242,155.1,155.08,3.2246]
[1729019698340,7.1037,155.13,155.05,15.48]
[1729019699040,3.2238,155.12,155.09,3.2242]
[1729019699239,7.1037,155.13,155.09,3.2242]
[1729019699444,7.1037,155.13,155.05,15.48]
[1729019699651,3.2238,155.12,155.09,3.2243]
[1729019699946,7.1037,155.13,155.09,3.2243]
[1729019700446,3.2238,155.12,155.09,3.2243]
[1729019700841,7.1037,155.13,155.05,15.48]
[1729019701035,15.48,155.12,155.01,15.48]
[1729019701240,3.2246,155.08,155.02,5.72]
[1729019701443,1.3837,155.13,155.05,15.48]
[1729019701643,4.6074,155.13,155.1,3.2241]
[1729019701948,8.4725,155.14,155.07,15.48]
[1729019701949,1.3563,155.14,155.07,15.48]
[1729019702143,1.3563,155.14,155.13,3.2235]
[1729019703051,1.3563,155.14,155.12,3.2237]
[1729019704239,3.2228,155.17,155.14,3.2232]
[1729019704442,5.7,155.19,155.14,3.2232]
[1729019704839,8.90004656,155.19,155.14,3.2232]
[1729019705142,3.2229,155.17,155.14,3.2232]
[1729019705741,3.2229,155.17,155.12,3.2237]
[1729019705948,15.48,155.23,155.14,15.48]
[1729019706144,1.37,155.22,155.14,15.48]
[1729019706353,1.37,155.22,155.2,3.222]
[1729019706646,5.7,155.23,155.2,3.222]
[1729019707247,8.9215,155.23,155.2,3.222]
[1729019708444,5.7,155.23,155.17,15.48]
[1729019708647,5.7,155.23,155.14,5.7]
[1729019708845,1.3502,155.22,155.14,5.7]
[1729019709040,3.222,155.21,155.18,3.2224]
[1729019709249,5.7,155.23,155.16,15.48]
[1729019709648,3.2218,155.22,155.18,3.2224]
[1729019709954,3.2218,155.22,155.16,15.48]
[1729019710155,3.2218,155.22,155.17,3.2225]
[1729019710456,5.7,155.23,155.16,15.48]
[1729019710457,3.2219,155.21,155.16,15.48]
[1729019710647,5.7,155.23,155.16,15.48]
[1729019711156,3.2217,155.22,155.16,15.48]
[1729019711347,3.2217,155.22,155.19,3.2222]
[1729019711550,5.7,155.23,155.16,15.48]
[1729019711748,7.0502,155.26,155.18,15.48]
[1729019711953,7.0502,155.26,155.2,3.222]
[1729019712454,3.2214,155.24,155.2,3.222]
[1729019712657,7.0502,155.26,155.19,3.2222]
[1729019712862,16.47917013,155.25,155.14,21.18]
[1729019713061,15.48,155.25,155.14,21.18]
[1729019713865,7.0502,155.26,155.14,21.18]
[1729019713866,15.48,155.23,155.14,21.18]
[1729019714063,7.0592,155.22,155.14,21.18]
[1729019714267,3.2225,155.19,155.15,3.223]
[1729019714761,3.2222,155.2,155.16,3.2228]
[1729019715463,7.0592,155.22,155.14,15.48]
[1729019715764,7.0592,155.22,155.16,3.2229]
[1729019715765,3.2225,155.19,155.16,3.2229]
[1729019716865,7.0592,155.22,155.16,3.2229]
[1729019717071,3.2222,155.2,155.16,3.2229]
[1729019717269,21.18,155.25,155.16,15.48]
[1729019717572,3.2218,155.22,155.16,15.48]
[1729019717868,15.48,155.23,155.14,15.48]
[1729019718673,15.48,155.23,155.16,3.2228]
[1729019719368,3.2222,155.2,155.16,3.2228]
[1729019719573,3.2222,155.2,155.16,18.7028]
[1729019719768,15.48,155.25,155.19,3.2222]
[1729019720077,0.99948024,155.24,155.18,15.48]
[1729019720370,3.2214,155.24,155.2,3.2219]
[1729019721171,15.48,155.25,155.18,3.2224]
[1729019721365,0.99944433,155.24,155.16,15.48]
[1729019721570,15.48,155.21,155.11,1.4158]
[1729019721781,15.48,155.19,155.09,22.4759]
[1729019721968,7.0576,155.18,155.09,22.4759]
[1729019722172,3.2233,155.15,155.12,3.2237]
[1729019722665,7.0576,155.18,155.09,22.4759]
[1729019722666,3.223,155.16,155.11,3.2238]
[1729019722870,3.223,155.16,155.09,22.4759]
[1729019723269,3.223,155.16,155.12,3.2236]
[1729019724471,3.2228,155.17,155.14,3.2233]
[1729019724873,3.2228,155.17,155.11,15.48]
[1729019725066,7.0576,155.18,155.11,15.48]
[1729019725272,3.2233,155.15,155.11,15.48]
[1729019725881,3.2233,155.15,155.12,3.2237]
[1729019726974,15.48,155.17,155.09,15.48]
[1729019727175,15.48,155.17,155.08,5.66]
[1729019727371,15.48,155.17,155.07,15.48]
[1729019727773,7.0576,155.18,155.08,15.48]
[1729019728675,7.0576,155.18,155.1,15.48]
[1729019728676,1.3976,155.18,155.1,15.48]
[1729019728885,7.0576,155.18,155.1,15.48]
[1729019729282,3.223,155.16,155.13,3.2235]
[1729019729476,7.0576,155.18,155.12,15.48]
[1729019729685,1.3976,155.18,155.12,15.48]
[1729019730285,1.3976,155.18,155.15,3.2229]
[1729019730782,1.3976,155.18,155.12,15.48]
[1729019731184,4.6203,155.18,155.14,3.2232]
[1729019731382,1.3976,155.18,155.12,15.48]
[1729019732588,1.3976,155.18,155.15,3.2229]
[1729019732887,3.2224,155.19,155.12,15.48]
[1729019733479,3.2228,155.17,155.12,15.48]
[1729019733679,6.999,155.2,155.1,21.14]
[1729019734282,15.48,155.18,155.09,5.66]
[1729019734593,1.398,155.17,155.09,5.66]
[1729019735288,3.2232,155.15,155.11,3.2238]
[1729019736995,3.2236,155.13,155.1,3.2241]
[1729019740089,15.48,155.14,155.01,6.452]
[1729019740285,15.48,155.12,155.04,21.14]
[1729019740481,1.3484,155.11,155.04,21.14]
[1729019740792,3.2246,155.08,155.05,3.2251]
[1729019741193,1.3484,155.11,155.02,5.66]
[1729019741387,3.2245,155.09,155.02,5.66]
[1729019742796,3.2245,155.09,155.05,3.225]
[1729019742986,1.3484,155.11,155.02,5.66]
[1729019743187,15.48,155.1,155.01,22.5344]
[1729019743492,15.48,155.1,155.04,3.2252]
[1729019743695,3.2247,155.08,155.04,3.2252]
[1729019744786,3.2247,155.08,155.01,22.5344]
[1729019744991,3.2247,155.08,155.05,3.2252]
[1729019745593,1.3484,155.11,155.08,3.2246]
[1729019745594,4.5724,155.11,155.08,3.2246]
[1729019745787,1.3484,155.11,155.04,15.48]
[1729019746193,15.48,155.1,155.01,22.5344]
[1729019746894,3.2245,155.09,155.05,3.2251]
[1729019747495,3.2245,155.09,155.01,22.5344]
[1729019747688,3.2245,155.09,155.03,15.48]
[1729019748791,1.3484,155.11,155.07,15.48]
[1729019748993,1.3484,155.11,155.01,13.5065]
[1729019748994,5.68,155.14,155.09,15.48]
[1729019749694,8.9034,155.14,155.09,15.48]
[1729019750490,8.9034,155.14,155.1,3.224]
[1729019750886,8.9034,155.14,155.09,15.48]
[1729019751102,8.9034,155.14,155.11,3.2239]
[1729019753595,8.9034,155.14,155.09,15.48]
[1729019753596,3.2243,155.1,155.07,3.2246]
[1729019754696,3.2241,155.11,155.05,15.48]
[1729019754899,3.2241,155.11,155.08,3.2246]
[1729019756497,21.16,155.14,155.05,15.48]
[1729019756704,21.16,155.14,155.07,3.2247]
[1729019757095,3.2242,155.1,155.07,3.2247]
[1729019757297,15.48,155.12,155.06,3.225]
[1729019757998,3.2241,155.11,155.06,3.225]
[1729019758203,15.48,155.12,155.06,3.225]
[1729019758393,1.409,155.11,155.06,3.225]
[1729019758703,2.8178,155.11,155.06,3.225]
[1729019758904,2.8178,155.11,155.05,3.2251]
[1729019759108,2.8178,155.11,154.97,6.4536]
[1729019759109,15.48,155.08,154.92,3.21594333]
[1729019759407,3.2253,155.05,154.97,15.48]
[1729019759597,5.52,155.06,154.97,15.48]
[1729019760209,18.75421466,155.05,154.99,3.2264]
[1729019760415,18.75776307,155.09,154.99,15.48]
[1729019760701,5.52,155.08,155.03,3.2255]
[1729019760908,3.2249,155.07,155.03,3.2255]
[1729019761207,1.3872,155.1,155.06,3.225]
[1729019761507,23.8178,155.11,155.03,15.48]
[1729019761703,18.6728999,155.1,155.0,15.48]
[1729019762007,18.6728999,155.1,155.03,3.2256]
[1729019762310,3.1928999,155.1,155.03,3.2256]
[1729019762604,2.8178,155.11,155.02,15.48]
[1729019762802,5.52,155.1,155.05,15.48]
[1729019763402,8.3378,155.11,155.05,15.48]
[1729019763806,3.2254,155.04,154.99,15.48]
[1729019763998,3.2254,155.04,154.97,21.0]
[1729019764206,18.69709587,155.08,154.97,21.0]
[1729019764207,15.48,155.06,154.97,21.0]
[1729019764503,5.52,155.07,154.94,21.0]
[1729019764504,15.48,155.03,154.94,21.0]
[1729019764700,5.52,155.03,154.96,15.48]
[1729019764905,8.7457,155.03,154.99,3.2263]
[1729019765304,5.52,155.03,154.98,15.48]
[1729019766303,3.2259,155.02,154.98,3.2265]
[1729019766605,5.52,155.03,154.96,15.48]
[1729019766808,8.7457,155.03,154.99,3.2264]
[1729019767303,3.2253,155.05,154.98,15.48]
[1729019767502,18.69709587,155.08,155.0,15.48]
[1729019767503,5.52,155.06,155.0,15.48]
[1729019767910,19.7155,155.11,155.02,15.48]
[1729019768107,5.52,155.1,155.02,15.48]
[1729019768304,15.48,155.09,155.0,15.48]
[1729019768506,3.2252,155.05,155.01,3.2259]
[1729019768714,15.48,155.09,155.0,15.48]
[1729019768908,8.69442397,155.1,155.02,15.48]
[1729019769105,3.225,155.07,155.03,3.2255]
[1729019769315,19.7155,155.11,155.02,15.48]
[1729019769610,5.52,155.09,155.04,15.48]
[1729019770110,8.7445,155.09,155.05,3.225]
[1729019770312,4.2355,155.11,155.04,15.48]
[1729019770610,4.2355,155.11,155.0,18.7124868]
[1729019770611,8.3378,155.11,155.06,15.48]
[1729019771109,3.2242,155.1,155.07,3.2248]
[1729019771316,2.8178,155.11,155.04,15.48]
[1729019771505,1.409,155.11,155.04,15.48]
[1729019771709,1.409,155.11,155.06,15.48]
[1729019772205,1.409,155.11,155.08,3.2245]
[1729019772411,5.52,155.13,155.06,15.48]
[1729019772806,21.0,155.13,155.07,3.2247]
[1729019773009,21.0,155.13,155.04,15.48]
[1729019773808,3.2241,155.11,155.07,3.2247]
[1729019774103,15.48,155.11,155.02,21.0]
[1729019774410,18.7045,155.09,155.05,3.2252]
[1729019774617,15.48,155.09,155.02,5.52]
[1729019775012,3.2248,155.08,155.04,3.2253]
[1729019775209,3.2248,155.08,155.0,15.48]
[1729019775517,16.9153,155.09,155.0,21.0]
[1729019775703,3.225,155.06,154.99,2.7717]
[1729019775905,15.48,155.07,154.99,6.9283]
[1729019776108,15.48,155.07,154.99,5.52]
[1729019776512,15.48,155.06,154.99,5.52]
[1729019776719,5.52,155.05,154.96,21.0]
[1729019777418,3.2258,155.03,155.0,3.2262]
[1729019778007,5.52,155.05,154.96,21.0]
[1729019778215,15.48,155.03,154.98,3.2265]
[1729019779012,1.4038,155.02,154.98,3.2265]
[1729019779213,4.6297,155.02,154.98,3.2265]
[1729019780615,4.6297,155.02,154.97,3.2267]
[1729019780616,3.2261,155.01,154.97,3.2267]
[1729019781218,16.8838,155.02,154.97,3.2267]
[1729019781421,3.2262,155.0,154.96,3.2269]
[1729019781624,3.2262,155.0,154.91,1.3408]
[1729019781625,15.48,155.0,154.91,1.3408]
[1729019781808,15.48,155.0,154.79,22.34430188]
[1729019781809,3.2273,154.95,154.86,5.56]
[1729019782012,3.2273,154.95,154.86,21.04]
[1729019782516,3.2273,154.95,154.9,3.2282]
[1729019785922,3.2273,154.95,154.86,5.56]
[1729019785923,24.82,154.92,154.83,1.3756]
[1729019786134,3.229,154.87,154.83,4.6053]
[1729019786310,30.38,154.92,154.83,1.3756]
[1729019786716,30.38,154.92,154.84,3.2295]
[1729019787518,30.38,154.92,154.83,3.2296]
[1729019787718,24.82,154.9,154.8,1.3408]
[1729019787922,1.3364,154.89,154.8,1.3408]
[1729019788121,5.56,154.88,154.8,1.3408]
[1729019788324,3.2293,154.86,154.82,3.2299]
[1729019788826,3.229,154.87,154.82,3.2299]
[1729019789221,3.229,154.87,154.8,1.3408]
[1729019789222,3.2292,154.86,154.81,3.2301]
[1729019789426,3.2292,154.86,154.8,1.3408]
[1729019790519,3.2292,154.86,154.82,3.23]
[1729019791019,1.3364,154.89,154.8,1.3408]
[1729019791220,1.3364,154.89,154.8,26.1608]
[1729019791829,1.3364,154.89,154.85,3.2292]
[1729019792029,1.3364,154.89,154.8,26.1608]
[1729019792224,5.56,154.91,154.82,5.56]
[1729019792428,3.2282,154.91,154.86,3.229]
[1729019792628,8.7882,154.91,154.86,3.229]
[1729019793026,8.7882,154.91,154.82,5.56]
[1729019793027,5.56,154.91,154.82,30.38]
[1729019793631,5.56,154.91,154.8,26.1608]
[1729019793828,5.56,154.91,154.81,5.58]
[1729019794431,3.2284,154.9,154.85,3.2292]
[1729019795037,3.2284,154.9,154.86,3.2291]
[1729019795535,6.889,154.93,154.83,24.82]
[1729019795928,3.228,154.92,154.83,24.82]
[1729019796934,3.228,154.92,154.88,3.2286]
[1729019797127,6.889,154.93,154.88,3.2286]
[1729019797328,3.2281,154.91,154.88,3.2286]
[1729019797534,6.889,154.93,154.88,3.2286]
[1729019798340,3.228,154.92,154.88,3.2286]
[1729019800233,1.309,154.93,154.85,30.4]
[1729019800434,109.94945434,154.95,154.86,5.58]
[1729019800835,109.94945434,154.95,154.91,3.228]
[1729019800836,3.2275,154.94,154.91,3.228]
[1729019801237,106.72205434,154.95,154.91,3.228]
[1729019801538,109.94945434,154.95,154.91,3.228]
[1729019802235,3.2274,154.95,154.91,3.228]
[1729019802430,3.2274,154.95,154.87,1.3946]
[1729019802635,8.8072,154.96,154.92,3.2279]
[1729019803132,4.63354883,154.97,154.95,3.2272]
[1729019803133,7.0139,154.97,154.95,3.2272]
[1729019803335,10.30969814,154.97,154.87,1.3946]
[1729019803531,35.12969814,154.97,154.87,1.3946]
[1729019804035,3.2274,154.95,154.91,3.228]
[1729019804345,7.0139,154.97,154.87,1.3946]
[1729019804539,7.0139,154.97,154.93,3.2276]
[1729019804934,7.0139,154.97,154.94,3.2275]
[1729019805239,7.0139,154.97,154.87,1.3946]
[1729019805636,7.0139,154.97,154.94,3.2274]
[1729019805840,7.0139,154.97,154.9,15.5]
[1729019806142,1.4339,154.97,154.9,21.08]
[1729019806335,5.58,154.99,154.9,21.08]
[1729019806735,15.5,155.02,154.92,15.5]
[1729019807041,8.8064,155.0,154.92,15.5]
[1729019807241,8.8064,155.0,154.96,3.2269]
[1729019807440,5.58,155.0,154.92,15.5]
[1729019807942,5.58,155.0,154.97,3.2268]
[1729019808645,6.0374,155.01,154.97,3.2268]
[1729019811342,15.5,154.99,154.91,1.332]
[1729019811643,3.2268,154.98,154.91,1.332]
[1729019812338,3.2268,154.98,154.93,3.2277]
[1729019812640,3.2268,154.98,154.9,21.16]
[1729019812944,4.6369,154.98,154.94,3.2273]
[1729019813333,3.227,154.97,154.9,5.66]
[1729019814043,3.227,154.97,154.93,3.2275]
[1729019814337,3.227,154.97,154.9,5.66]
[1729019814542,7.0701,154.98,154.9,21.16]
[1729019815542,5.66,154.98,154.9,21.16]
[1729019815943,5.66,154.98,154.96,3.227]
[1729019816936,3.2263,155.0,154.96,3.227]
[1729019818144,3.2265,154.99,154.96,3.227]
[1729019819150,3.2268,154.98,154.94,3.2274]
[1729019819539,15.5,154.95,154.86,1.314]
[1729019819744,3.2277,154.93,154.9,3.2283]
[1729019820143,16.8507,154.95,154.9,3.2283]
[1729019820446,3.2276,154.94,154.9,3.2283]
[1729019820749,16.8507,154.95,154.86,6.974]
[1729019821345,1.3507,154.95,154.87,16.8946]
[1729019821741,15.5,154.98,154.89,15.5]
[1729019822045,25.7073,155.0,154.96,3.227]
[1729019822244,1.321,155.0,154.93,15.5]
[1729019822450,15.5,155.04,154.95,15.5]
[1729019822654,21.16,155.04,154.95,15.5]
[1729019823049,15.5,155.04,154.95,15.5]
[1729019823247,8.2771,155.05,155.0,3.2261]
[1729019823443,8.2771,155.05,154.95,15.5]
[1729019823444,23.7771,155.05,154.95,15.5]